bitfinex-derivatives/quotes_SOLF0:USTF0_20241222
["timestamp","ask_amount","ask_price","bid_price","bid_amount"]
[1734895835650,24.11807456,180.2,180.05,4.4691]
[1734895837146,24.11807456,180.2,180.05,1.6691]
[1734895837348,24.11807456,180.2,180.04,1.6455]
[1734895837349,21.31807456,180.17,180.04,1.6455]
[1734895837653,2.8,180.2,179.91,112.4560106]
[1734895837654,21.31807456,180.14,179.99,2.8]
[1734895837854,21.31807456,180.14,180.01,0.20564]
[1734895837855,2.8,180.13,180.01,0.20564]
[1734895840549,21.31807456,180.11,180.01,0.20564]
[1734895841653,2.8,180.1,180.01,0.20564]
[1734895842657,21.31807456,180.11,180.01,0.20564]
[1734895842859,2.8,180.11,180.01,0.20564]
[1734895843458,24.11807456,180.11,180.01,0.20564]
[1734895844854,21.31807456,180.08,180.01,0.20564]
[1734895846150,34.70506454,180.08,180.01,0.20564]
[1734895847654,34.70506454,180.02,180.01,0.20564]
[1734895847858,34.70506454,180.02,179.85,34.70506454]
[1734895847859,37.50506454,180.02,179.86,2.8]
[1734895848063,34.70506454,179.97,179.84,5.1147]
[1734895848261,2.8,179.96,179.83,79.42365579]
[1734895848463,34.70506454,179.94,179.83,79.42365579]
[1734895848957,34.70506454,179.94,179.83,2.25614609]
[1734895850359,34.70506454,179.91,179.83,2.25614609]
[1734895850562,2.8,179.9,179.83,2.25614609]
[1734895851666,2.8,179.89,179.83,2.25614609]
[1734895852061,34.70506454,179.94,179.83,2.25614609]
[1734895852262,2.8,179.95,179.83,2.25614609]
[1734895852465,2.8,179.96,179.83,2.25614609]
[1734895853470,34.70506454,180.0,179.83,2.25614609]
[1734895853769,2.8,179.99,179.86,2.7819]
[1734895853960,2.8,179.99,179.87,2.8]
[1734895856369,34.70506454,179.97,179.84,5.5823]
[1734895856768,34.70506454,179.97,179.84,2.8]
[1734895857270,34.70506454,179.97,179.83,5.03854609]
[1734895857468,34.70506454,179.97,179.83,7.83854609]
[1734895857667,34.70506454,179.97,179.83,5.05614609]
[1734895858671,34.70506454,179.94,179.83,2.25614609]
[1734895858870,2.8,179.93,179.83,2.25614609]
[1734895859269,2.8,179.95,179.84,2.8]
[1734895859669,2.8,179.99,179.85,34.70506454]
[1734895859874,2.8,180.0,179.9,2.7813]
[1734895860173,2.8,180.0,179.91,3.3639]
[1734895860582,92.50506454,180.03,179.91,3.3639]
[1734895860777,2.8,180.02,179.91,3.3639]
[1734895860979,34.70506454,180.03,179.91,3.3639]
[1734895861172,2.8,180.02,179.92,2.781]
[1734895861379,37.50506454,180.03,179.92,2.781]
[1734895861773,2.8,180.03,179.94,2.7807]
[1734895861974,2.8,180.03,179.94,2.8]
[1734895862175,2.8,180.06,179.97,2.7803]
[1734895863077,2.8,180.06,179.95,1.7625]
[1734895863577,2.8,180.09,179.95,1.7625]
[1734895863786,34.70506454,180.13,179.97,34.70506454]
[1734895863981,34.70506454,180.13,180.0,2.7798]
[1734895864184,2.8,180.12,180.01,3.3669]
[1734895869496,34.70506454,180.13,180.01,3.3669]
[1734895869988,2.8,180.12,180.01,3.3669]
[1734895870581,2.8,180.12,180.02,2.8]
[1734895870782,2.8,180.12,180.02,5.5795]
[1734895870981,2.8,180.12,180.01,3.3669]
[1734895871187,34.70506454,180.1,180.01,3.3669]
[1734895871387,34.70506454,180.1,180.01,1.7445]
[1734895872184,2.8,180.12,180.01,1.7445]
[1734895875490,34.70506454,180.13,180.01,1.7445]
[1734895875491,34.70506454,180.16,180.01,4.5241]
[1734895875691,2.8,180.15,180.01,4.5241]
[1734895875889,2.8,180.15,180.01,7.3241]
[1734895876394,24.1408396,180.15,180.01,7.3241]
[1734895877596,106.95533216,180.18,180.01,4.5445]
[1734895877797,2.8,180.17,180.02,1.5975]
[1734895877991,106.95533216,180.18,180.02,1.5975]
[1734895878193,3.68864692,180.17,180.02,1.5975]
[1734895878491,2.8,180.17,180.03,2.7792]
[1734895878985,29.98124839,180.25,180.11,21.3408396]
[1734895879190,7.59850215,180.25,180.14,21.3408396]
[1734895879599,7.59850215,180.25,180.17,21.3408396]
[1734895879896,7.59850215,180.25,180.18,2.8]
[1734895880091,2.8,180.31,180.17,21.3408396]
[1734895880299,0.88939909,180.3,180.19,2.8]
[1734895880794,12.28810585,180.34,180.19,2.8]
[1734895880994,3.68945507,180.33,180.19,2.8]
[1734895881195,0.88945507,180.32,180.19,2.8]
[1734895881394,0.88958246,180.31,180.19,2.8]
[1734895881596,2.8,180.33,180.19,2.8]
[1734895881789,0.88960736,180.32,180.14,21.3408396]
[1734895881989,21.3408396,180.29,180.14,21.3408396]
[1734895882188,2.8,180.28,180.13,34.62845429]
[1734895882390,2.8,180.28,180.14,2.8]
[1734895882794,34.62845429,180.26,180.12,4.9721]
[1734895883002,0.88976672,180.25,180.13,2.8]
[1734895883191,34.62845429,180.17,180.06,2.8]
[1734895883394,34.62845429,180.17,180.07,2.8]
[1734895884099,34.62845429,180.17,180.03,2.7793]
[1734895884300,34.62845429,180.17,180.04,2.8]
[1734895884801,34.62845429,180.17,180.05,2.8]
[1734895886408,34.62845429,180.17,180.02,7.9542]
[1734895886598,34.62845429,180.14,180.02,5.1747]
[1734895886900,34.62845429,180.11,180.01,2.8]
[1734895887095,37.42845429,180.11,180.01,2.8]
[1734895887701,37.42845429,180.11,179.96,2.7804]
[1734895887894,37.42845429,180.11,179.97,2.8]
[1734895888795,37.42845429,180.11,179.96,2.7804]
[1734895888998,37.42845429,180.11,179.97,2.8]
[1734895889299,2.8,180.1,179.97,2.8]
[1734895891302,2.8,180.1,179.98,2.8]
[1734895891606,2.8,180.1,179.99,2.8]
[1734895897609,34.62845429,180.05,179.95,3.3668]
[1734895897810,2.8,180.04,179.95,3.3668]
[1734895898513,2.8,180.04,179.95,1.7636]
[1734895898812,2.8,180.04,179.92,4.5239]
[1734895902607,34.62845429,180.02,179.92,1.7239]
[1734895903814,2.8,180.02,179.92,1.7239]
[1734895904214,2.8,180.02,179.93,2.8]
[1734895905316,2.8,180.03,179.93,2.8]
[1734895906319,34.62845429,180.02,179.93,2.8]
[1734895906619,34.62845429,180.02,179.92,1.7239]
[1734895908111,34.62845429,180.02,179.89,3.2523]
[1734895908316,34.62845429,179.99,179.89,3.2523]
[1734895908615,2.8,179.98,179.89,3.2523]
[1734895909416,34.62845429,180.02,179.89,3.2523]
[1734895909617,2.8,180.06,179.91,34.62845429]
[1734895909817,2.8,180.06,179.92,2.8]
[1734895910114,34.62845429,180.09,179.94,2.7806]
[1734895910322,2.8,180.08,179.95,1.7692]
[1734895910523,2.8,180.08,179.96,2.8]
[1734895911216,2.8,180.07,179.96,2.8]
[1734895911417,2.8,180.07,179.97,1.6849]
[1734895913723,34.62845429,180.09,179.97,1.6849]
[1734895913923,85.65937979,180.1,179.97,3.3355]
[1734895914133,85.65937979,180.1,179.97,37.96395429]
[1734895914324,2.8,180.14,180.02,2.7794]
[1734895914622,64.60970268,180.17,179.97,3.3355]
[1734895914623,2.8,180.16,180.03,39.14655429]
[1734895914822,2.8,180.16,180.05,2.7789]
[1734895915020,2.8,180.16,180.06,3.3378]
[1734895915523,34.62845429,180.17,180.06,3.3378]
[1734895915728,37.42845429,180.2,180.06,37.96625429]
[1734895916027,2.8,180.2,180.06,37.96625429]
[1734895916226,2.8,180.2,180.09,2.7783]
[1734895916427,2.8,180.2,180.1,2.8]
[1734895917627,37.42845429,180.2,180.1,2.8]
[1734895918430,37.42845429,180.2,180.06,6.1378]
[1734895918633,34.62845429,180.17,180.06,6.1378]
[1734895918827,2.8,180.16,180.06,6.1378]
[1734895919635,2.8,180.16,180.06,8.9167]
[1734895919828,2.8,180.16,180.06,6.1378]
[1734895921330,2.8,180.16,180.06,3.3378]
[1734895922136,2.8,180.16,180.06,1.6872]
[1734895922334,34.62845429,180.14,180.02,2.8]
[1734895923032,34.62845429,180.14,180.0,2.8]
[1734895923232,0.88926085,180.13,180.0,2.8]
[1734895923432,2.8,180.12,179.99,2.8]
[1734895924738,34.62845429,180.11,179.99,2.8]
[1734895925131,2.8,180.12,179.99,5.5799]
[1734895925339,29.98124839,180.17,180.0,34.62845429]
[1734895925534,3.6890634,180.16,180.0,34.62845429]
[1734895925735,6.96984363,180.16,180.0,34.62845429]
[1734895925934,0.88899873,180.15,180.02,2.7795]
[1734895926135,35.51745302,180.15,180.0,34.62845429]
[1734895926336,35.51745302,180.15,180.0,37.40815429]
[1734895926532,35.51745302,180.15,180.0,34.62845429]
[1734895928238,0.88899873,180.15,180.0,34.62845429]
[1734895928442,0.88899873,180.15,180.03,34.62845429]
[1734895928645,0.88899873,180.15,180.04,6.125]
[1734895929045,0.88899873,180.15,180.05,1.7014]
[1734895929545,0.88899873,180.15,180.05,4.4804]
[1734895929746,0.88899873,180.15,180.05,1.7014]
[1734895930943,35.51745302,180.15,180.04,3.325]
[1734895931138,4.16922118,180.14,180.04,3.325]
[1734895931442,2.8,180.13,180.04,3.325]
[1734895932848,2.8,180.13,180.01,1.6123]
[1734895933050,34.62845429,180.12,180.01,1.6123]
[1734895933244,34.62845429,180.09,179.96,3.2729]
[1734895933446,2.8,180.08,179.96,3.2729]
[1734895933646,34.62845429,180.05,179.96,3.2729]
[1734895933850,2.8,180.04,179.96,3.2729]
[1734895934748,2.8,180.04,179.93,1.6123]
[1734895934945,34.62845429,180.02,179.89,3.2671]
[1734895938152,34.62845429,179.99,179.89,3.2671]
[1734895938349,34.62845429,179.96,179.86,1.6014]
[1734895938546,2.8,179.95,179.83,5.62734609]
[1734895938750,34.62845429,179.93,179.83,5.62734609]
[1734895938958,34.62845429,179.93,179.83,2.25614609]
[1734895939153,34.62845429,179.9,179.83,2.25614609]
[1734895939457,2.8,179.89,179.83,2.25614609]
[1734895939653,34.62845429,179.87,179.83,2.25614609]
[1734895940852,2.8,179.88,179.83,2.25614609]
[1734895942655,2.8,179.9,179.83,2.25614609]
[1734895943655,34.62845429,179.96,179.83,2.25614609]
[1734895943958,2.8,179.95,179.84,4.8378]
[1734895944255,34.62845429,179.93,179.84,3.219]
[1734895944454,34.62845429,179.93,179.83,2.25614609]
[1734895945560,34.62845429,179.9,179.83,2.25614609]
[1734895945856,2.8,179.89,179.83,2.25614609]
[1734895946658,34.62845429,179.87,179.83,2.25614609]
[1734895947352,2.8,179.89,179.83,2.25614609]
[1734895947353,34.62845429,179.84,179.83,2.25614609]
[1734895947555,37.42845429,179.84,179.75,0.27294]
[1734895947759,34.62845429,179.81,179.75,0.27294]
[1734895947959,2.8,179.8,179.75,0.27294]
[1734895948456,34.62845429,179.78,179.75,0.27294]
[1734895949256,34.62845429,179.82,179.75,0.27294]
[1734895949455,2.8,179.8,179.75,0.27294]
[1734895951659,2.8,179.79,179.75,0.27294]
[1734895952750,34.62845429,179.76,179.57,34.62845429]
[1734895952957,2.8,179.75,179.61,1.7697]
[1734895953458,34.62845429,179.73,179.61,1.7697]
[1734895953857,34.62845429,179.7,179.6,3.3341]
[1734895954059,2.8,179.69,179.6,3.3341]
[1734895954360,2.8,179.69,179.57,1.7697]
[1734895956066,2.8,179.68,179.57,1.7697]
[1734895956363,34.62845429,179.67,179.57,1.7697]
[1734895956561,34.62845429,179.73,179.58,2.8]
[1734895956761,2.8,179.72,179.58,2.8]
[1734895957168,34.62845429,179.7,179.58,2.8]
[1734895957365,34.62845429,179.7,179.57,1.7697]
[1734895957670,2.8,179.69,179.57,1.7697]
[1734895958364,2.8,179.68,179.58,2.7863]
[1734895959772,2.8,179.68,179.58,2.8]
[1734895960968,2.8,179.68,179.58,5.5863]
[1734895961467,2.8,179.68,179.58,2.8]
[1734895962368,37.42845429,179.68,179.57,1.7697]
[1734895963466,34.62845429,179.68,179.57,1.7697]
[1734895963666,2.8,179.67,179.57,1.7697]
[1734895963862,2.8,179.67,179.57,4.556]
[1734895964166,2.8,179.67,179.51,34.62845429]
[1734895964372,2.8,179.67,179.53,2.787]
[1734895964666,2.8,179.67,179.5,3.00089]
[1734895964875,2.8,179.67,179.29,197.7496043]
[1734895964876,33.35,179.5,179.32,16.17841721]
[1734895965166,34.62845429,179.33,179.29,189.3775043]
[1734895965669,34.62845429,179.33,179.29,177.3775043]
[1734895966364,67.97845429,179.33,179.29,177.3775043]
[1734895966564,60.78801722,179.3,179.14,5.5]
[1734895966768,34.62845429,179.2,178.93,57.96]
[1734895966970,120.69456545,179.28,179.08,40.12845429]
[1734895967565,26.53263916,179.2,179.08,40.12845429]
[1734895968162,26.53263916,179.2,179.03,77.49052841]
[1734895968163,26.53263916,179.2,179.14,5.5]
[1734895968472,26.53263916,179.22,179.14,5.5]
[1734895968873,7.24532438,179.22,179.15,5.2153]
[1734895969171,4.57992438,179.22,179.09,38.09109507]
[1734895969368,4.57992438,179.22,179.1,5.5]
[1734895969570,19.06861454,179.3,179.1,5.5]
[1734895970172,19.06861454,179.3,179.11,5.5]
[1734895970776,38.09109507,179.31,179.11,5.5]
[1734895971176,38.09109507,179.31,179.09,38.09109507]
[1734895971479,55.61165678,179.36,179.07,57.98]
[1734895971480,93.70275185,179.36,179.07,57.98]
[1734895971674,38.09109507,179.31,179.08,5.5]
[1734895971973,2.791,179.28,179.1,38.09109507]
[1734895972174,93.70275185,179.36,179.1,38.09109507]
[1734895972574,93.70275185,179.36,179.22,2.7918]
[1734895972774,93.70275185,179.36,179.21,5.8]
[1734895973077,93.70275185,179.36,179.23,2.7917]
[1734895973372,39.82749507,179.36,179.23,2.7917]
[1734895973678,2.7902,179.34,179.21,5.8]
[1734895974076,5.5,179.39,179.21,5.8]
[1734895974280,5.5,179.39,179.23,2.7916]
[1734895975679,5.5,179.39,179.21,5.8]
[1734895976076,16.67,179.57,179.21,5.8]
[1734895976281,38.09109507,179.46,179.21,5.8]
[1734895976578,2.7895,179.38,179.21,5.8]
[1734895976786,38.09109507,179.46,179.21,5.8]
[1734895977078,38.09109507,179.46,179.25,38.09109507]
[1734895977272,38.09109507,179.46,179.26,1.7296]
[1734895978382,38.09109507,179.41,179.26,1.7296]
[1734895978984,38.09109507,179.41,179.28,2.791]
[1734895979184,5.8,179.42,179.26,1.7296]
[1734895979682,2.7896,179.37,179.31,2.7905]
[1734895979882,5.8,179.42,179.26,1.7296]
[1734895981382,2.7896,179.37,179.29,2.7907]
[1734895981584,5.8,179.42,179.26,1.7296]
[1734895982080,5.8,179.42,179.27,2.791]
[1734895982277,5.8,179.42,179.26,1.7296]
[1734895982476,5.8,179.42,179.28,2.791]
[1734895982683,5.8,179.42,179.26,1.7296]
[1734895983085,2.7895,179.38,179.27,2.791]
[1734895983288,5.8,179.42,179.27,2.791]
[1734895983592,5.8,179.42,179.26,1.7296]
[1734895983987,2.79,179.35,179.28,2.791]
[1734895984587,2.7896,179.38,179.25,1.6695]
[1734895984786,38.09109507,179.46,179.25,39.76059507]
[1734895984994,5.8,179.44,179.25,39.76059507]
[1734895985694,2.7896,179.37,179.3,2.7907]
[1734895985994,2.7896,179.37,179.25,39.76059507]
[1734895986193,2.7898,179.36,179.3,2.7905]
[1734895987298,2.7901,179.34,179.25,39.76059507]
[1734895987596,5.8,179.44,179.25,45.56059507]
[1734895987889,5.8,179.44,179.3,2.7906]
[1734895988090,5.8,179.44,179.25,7.4695]
[1734895988293,34.95905842,179.42,179.25,1.6695]
[1734895988492,2.7905,179.31,179.26,2.7913]
[1734895989090,34.95905842,179.36,179.25,1.6695]
[1734895989493,38.24985842,179.36,179.25,1.6695]
[1734895989896,1.6251,179.36,179.25,1.6695]
[1734895990093,5.52,179.37,179.25,1.6695]
[1734895991198,2.7901,179.34,179.29,2.7907]
[1734895992298,5.52,179.37,179.25,1.6695]
[1734895992797,2.7901,179.34,179.25,4.4608]
[1734895992999,5.52,179.37,179.25,1.6695]
[1734895993404,2.7906,179.31,179.26,2.7913]
[1734895993903,2.7901,179.34,179.29,2.7908]
[1734895994303,5.52,179.39,179.29,2.7908]
[1734895994508,2.7901,179.34,179.26,36.61195842]
[1734895994809,2.7901,179.34,179.3,2.7906]
[1734895995309,2.7901,179.34,179.26,36.61195842]
[1734895995509,3.2908,179.45,179.26,36.61195842]
[1734895995703,5.52,179.43,179.26,38.27835842]
[1734895995904,2.7899,179.35,179.31,2.7905]
[1734895997008,5.52,179.43,179.3,2.7906]
[1734895997211,5.52,179.43,179.26,38.27835842]
[1734895997601,2.7899,179.35,179.31,2.7904]
[1734895998408,3.2908,179.45,179.26,38.27835842]
[1734895998713,3.2908,179.45,179.3,34.95905842]
[1734895998900,3.2908,179.45,179.31,5.52]
[1734895999405,1.6251,179.45,179.31,5.52]
[1734895999804,34.95905842,179.43,179.27,34.95905842]
[1734896000107,34.95905842,179.43,179.32,21.10698507]
[1734896000911,1.6251,179.45,179.34,2.7899]
[1734896002111,1.6251,179.45,179.35,2.7899]
[1734896002507,2.7887,179.43,179.3,124.92452635]
[1734896002707,2.7887,179.43,179.37,2.7895]
[1734896002906,2.7887,179.43,179.31,114.83082526]
[1734896003214,2.7888,179.42,179.37,2.7895]
[1734896003601,127.93886713,179.46,179.33,40.21905842]
[1734896003602,85.97410871,179.46,179.33,40.21905842]
[1734896003800,85.97410871,179.46,179.41,2.7888]
[1734896003801,2.7882,179.46,179.41,2.7888]
[1734896004114,34.95905842,179.52,179.36,34.95905842]
[1734896004412,2.7876,179.5,179.44,2.7884]
[1734896004606,1.7152,179.53,179.44,2.7884]
[1734896005509,34.95905842,179.52,179.39,89.96546793]
[1734896005712,36.63735842,179.52,179.39,89.96546793]
[1734896005912,34.95905842,179.49,179.4,21.78845065]
[1734896006712,34.95905842,179.49,179.37,4.4686]
[1734896007311,2.7886,179.44,179.37,4.4686]
[1734896008013,2.7887,179.43,179.37,4.4686]
[1734896008515,5.26,179.48,179.37,4.4686]
[1734896009012,5.26,179.48,179.37,1.6791]
[1734896009817,2.7885,179.45,179.4,2.7891]
[1734896010018,5.26,179.49,179.37,1.6791]
[1734896010317,2.7883,179.46,179.39,2.7892]
[1734896010518,5.26,179.49,179.37,1.6791]
[1734896011219,2.7884,179.45,179.4,2.789]
[1734896011409,11.04257349,179.51,179.38,34.95905842]
[1734896011717,6.9383,179.52,179.38,34.95905842]
[1734896011911,2.7879,179.48,179.43,2.7886]
[1734896012111,2.7879,179.48,179.38,34.95905842]
[1734896012112,1.7152,179.53,179.38,34.95905842]
[1734896012513,1.7152,179.53,179.43,2.7885]
[1734896012514,2.788,179.48,179.43,2.7885]
[1734896013214,1.7152,179.53,179.43,2.7885]
[1734896013417,2.788,179.47,179.43,2.7885]
[1734896014122,1.7152,179.53,179.41,34.95905842]
[1734896014419,34.95905842,179.52,179.37,1.6791]
[1734896014917,4.98,179.51,179.37,1.6791]
[1734896015416,4.98,179.51,179.38,2.7894]
[1734896016011,2.7889,179.42,179.38,2.7894]
[1734896016319,4.98,179.51,179.37,1.6791]
[1734896016519,4.98,179.51,179.37,4.4686]
[1734896016920,16.00363533,179.51,179.37,4.4686]
[1734896017121,16.00363533,179.51,179.39,2.7893]
[1734896017321,16.00363533,179.51,179.37,1.6791]
[1734896017521,4.98,179.51,179.37,1.6791]
[1734896018022,4.98,179.51,179.39,2.7892]
[1734896018218,34.95905842,179.52,179.37,1.6791]
[1734896018419,4.98,179.51,179.37,1.6791]
[1734896018618,2.7883,179.46,179.38,34.95905842]
[1734896018821,4.98,179.51,179.38,34.95905842]
[1734896019021,1.7152,179.53,179.41,34.95905842]
[1734896019422,1.7152,179.53,179.38,34.95905842]
[1734896019620,2.7884,179.45,179.38,34.95905842]
[1734896020224,2.7884,179.45,179.42,2.7888]
[1734896020423,2.7884,179.45,179.38,34.95905842]
[1734896020722,1.7152,179.53,179.4,2.789]
[1734896020723,2.7885,179.44,179.4,2.789]
[1734896021224,34.95905842,179.52,179.37,1.6791]
[1734896021823,2.7889,179.42,179.38,2.7893]
[1734896024319,4.98,179.5,179.37,1.6791]
[1734896024926,2.7884,179.45,179.41,2.7888]
[1734896025425,4.98,179.5,179.41,2.7888]
[1734896025623,2.7885,179.44,179.41,2.7888]
[1734896025821,34.95905842,179.52,179.38,34.95905842]
[1734896026021,4.98,179.52,179.38,34.95905842]
[1734896027123,1.7152,179.53,179.38,34.95905842]
[1734896027322,6.6952,179.53,179.38,34.95905842]
[1734896028319,1.7152,179.53,179.38,34.95905842]
[1734896029024,2.7878,179.49,179.46,2.7882]
[1734896029921,39.65905842,179.55,179.38,34.95905842]
[1734896030123,39.65905842,179.55,179.47,2.788]
[1734896030425,3.3143,179.57,179.47,2.788]
[1734896030626,4.7,179.56,179.47,2.788]
[1734896031819,39.65905842,179.55,179.42,3.4017]
[1734896032123,34.95905842,179.52,179.37,1.6791]
[1734896032324,34.95905842,179.52,179.38,3.2969]
[1734896033220,34.95905842,179.52,179.38,38.25595842]
[1734896033525,2.788,179.47,179.44,2.7884]
[1734896034124,2.7882,179.46,179.43,2.7886]
[1734896034926,4.7,179.49,179.38,3.2969]
[1734896035531,2.7889,179.42,179.38,6.0863]
[1734896035927,4.7,179.49,179.38,3.2969]
[1734896036125,2.7888,179.42,179.39,2.7892]
[1734896036327,4.7,179.49,179.38,3.2969]
[1734896036731,2.7889,179.42,179.38,6.0863]
[1734896038231,1.7587,179.48,179.37,1.6791]
[1734896038432,2.7891,179.4,179.37,4.4687]
[1734896038926,2.789,179.41,179.37,4.4687]
[1734896040134,4.7,179.43,179.33,6.1774]
[1734896040835,2.7896,179.37,179.33,6.1774]
[1734896041037,4.7,179.43,179.33,3.3873]
[1734896042036,4.7,179.43,179.33,6.1774]
[1734896042234,39.65905842,179.43,179.33,3.3873]
[1734896042429,39.65905842,179.43,179.33,1.7172]
[1734896042430,2.7899,179.36,179.33,1.7172]
[1734896042630,39.65905842,179.43,179.33,1.7172]
[1734896043638,2.7896,179.37,179.33,1.7172]
[1734896043933,1.642,179.47,179.34,2.79]
[1734896044125,23.13977209,179.47,179.33,1.7172]
[1734896044328,4.44,179.46,179.33,1.7172]
[1734896044533,2.7896,179.37,179.33,4.5074]
[1734896045225,21.49777209,179.44,179.33,4.5074]
[1734896045428,2.7898,179.36,179.33,4.5074]
[1734896046037,2.7896,179.37,179.33,4.5074]
[1734896047337,21.49777209,179.44,179.33,4.5074]
[1734896047939,2.7897,179.37,179.33,4.5074]
[1734896048939,4.44,179.43,179.33,1.7172]
[1734896049235,2.7888,179.43,179.39,2.7892]
[1734896049439,1.7587,179.48,179.33,1.7172]
[1734896049440,1.7587,179.48,179.33,23.21497209]
[1734896049931,2.7885,179.44,179.33,23.21497209]
[1734896050437,2.7887,179.43,179.4,2.7891]
[1734896050834,21.49777209,179.47,179.33,1.7172]
[1734896051036,21.49777209,179.44,179.33,1.7172]
[1734896051233,25.93777209,179.44,179.33,1.7172]
[1734896052133,4.44,179.46,179.38,2.7894]
[1734896053041,4.44,179.46,179.39,2.7892]
[1734896053241,1.7587,179.48,179.33,23.21497209]
[1734896053242,27.69647209,179.48,179.33,23.21497209]
[1734896053635,27.69647209,179.48,179.33,1.7172]
[1734896053838,21.49777209,179.45,179.33,1.7172]
[1734896054030,2.7895,179.38,179.33,1.7172]
[1734896054234,2.7895,179.38,179.34,2.7899]
[1734896054438,2.7892,179.4,179.33,1.7172]
[1734896054634,4.44,179.45,179.36,2.7897]
[1734896055230,2.7892,179.4,179.36,2.7897]
[1734896055641,2.7892,179.4,179.37,2.7895]
[1734896056436,2.7888,179.43,179.33,1.7172]
[1734896056738,6.1987,179.48,179.34,4.44]
[1734896057240,1.7587,179.48,179.35,1.7416]
[1734896057440,2.7886,179.44,179.4,2.789]
[1734896057937,2.7886,179.44,179.35,1.7416]
[1734896058241,23.25647209,179.48,179.35,1.7416]
[1734896058837,2.7891,179.41,179.37,2.7895]
[1734896059641,2.7891,179.41,179.35,1.7416]
[1734896059841,2.7891,179.41,179.38,2.7894]
[1734896061347,23.25647209,179.48,179.35,1.7416]
[1734896061538,2.7888,179.43,179.39,2.7892]
[1734896061734,1.7587,179.48,179.35,1.7416]
[1734896062041,2.7885,179.44,179.4,2.789]
[1734896062449,2.7885,179.44,179.35,1.7416]
[1734896062642,2.7885,179.44,179.41,2.7889]
[1734896062839,21.49777209,179.47,179.3,0.21062]
[1734896063041,25.67777209,179.43,179.3,0.21062]
[1734896063240,4.18640486,179.42,179.3,0.21062]
[1734896063440,15.25576002,179.42,179.3,0.21062]
[1734896064045,4.18,179.41,179.3,0.21062]
[1734896064642,2.7902,179.34,179.3,0.21062]
[1734896065045,2.7902,179.33,179.3,0.21062]
[1734896065233,4.2,179.35,179.24,4.5569]
[1734896065438,4.2,179.34,179.24,1.7655]
[1734896066242,39.18420557,179.34,179.24,1.7655]
[1734896066950,2.7909,179.29,179.24,1.7655]
[1734896067244,39.18420557,179.34,179.24,1.7655]
[1734896067646,2.7911,179.28,179.24,1.7655]
[1734896069245,39.18420557,179.34,179.24,1.7655]
[1734896069547,39.18420557,179.34,179.25,2.7914]
[1734896069947,2.7908,179.3,179.25,2.7914]
[1734896070445,1.6951,179.37,179.24,1.7655]
[1734896070446,36.67930557,179.37,179.24,1.7655]
[1734896070644,40.87930557,179.37,179.24,1.7655]
[1734896071645,34.98420557,179.37,179.24,1.7655]
[1734896071845,4.2,179.39,179.24,1.7655]
[1734896072037,2.7898,179.36,179.31,2.7904]
[1734896072644,4.2,179.39,179.31,2.7904]
[1734896073248,2.7899,179.36,179.31,2.7904]
[1734896074639,4.2,179.39,179.29,4.458]
[1734896074844,34.98420557,179.37,179.29,4.458]
[1734896075047,34.98420557,179.37,179.24,1.7655]
[1734896075048,34.98420557,179.37,179.24,5.9655]
[1734896075344,34.98420557,179.37,179.24,7.5803]
[1734896075543,34.98420557,179.37,179.27,2.791]
[1734896075850,34.98420557,179.37,179.24,3.3803]
[1734896076747,2.79,179.34,179.3,2.7905]
[1734896079349,2.7903,179.33,179.29,2.7908]
[1734896079553,34.98420557,179.37,179.29,2.7908]
[1734896079949,34.98420557,179.37,179.24,3.3803]
[1734896080246,2.7902,179.34,179.3,2.7906]
[1734896080646,2.7902,179.34,179.24,7.5803]
[1734896080850,4.2,179.39,179.24,7.5803]